fUSD/lending_fUSD_20250202
["ID","MTS","AMOUNT","RATE_DAILY","PERIOD"]
[351306636,1738511436076,-689.19,0.00010958,2]
[351306637,1738511436086,-155.44344928,0.00010958,2]
[351306638,1738511436095,-1191.99,0.00010958,2]
[351306639,1738511436104,-500.0,0.00010958,2]
[351306640,1738511436113,-500.0,0.00010958,2]
[351306641,1738511436123,-500.0,0.00010958,2]
[351306642,1738511436132,-335.59742469,0.00010958,2]
[351306643,1738511436142,-500.0,0.00010958,2]
[351306644,1738511436151,-504.67137204,0.00010958,2]
[351306645,1738511436161,-851.33,0.00010958,2]
[351306646,1738511436170,-500.0,0.00010958,2]
[351306647,1738511436414,-500.0,0.00010958,2]
[351306648,1738511436425,-500.0,0.00010958,2]
[351306649,1738511436435,-500.0,0.00010958,2]
[351306650,1738511436444,-500.0,0.00010958,2]
[351306651,1738511436454,-677.75,0.00010958,2]
[351306652,1738511436464,-500.0,0.00010958,2]
[351306653,1738511436476,-500.0,0.00010958,2]
[351306654,1738511436486,-500.0,0.00010958,2]
[351306655,1738511436495,-155.403685,0.00010958,2]
[351306656,1738511436504,-500.0,0.00010958,2]
[351306657,1738511436514,-1595.43,0.00010958,2]
[351306658,1738511436526,-500.0,0.00010958,2]
[351306659,1738511436536,-500.0,0.00010958,2]
[351306660,1738511436547,-500.0,0.00010958,2]
[351306661,1738511436557,-500.0,0.00010958,2]
[351306662,1738511436569,-2506.07,0.00010958,2]
[351306663,1738511436579,-507.97548205,0.00010958,2]
[351306664,1738511436589,-500.0,0.00010958,2]
[351306665,1738511436601,-500.0,0.00010958,2]
[351306666,1738511436611,-842.15,0.00010958,2]
[351306667,1738511436621,-539.77,0.00010958,2]
[351306668,1738511436630,-500.0,0.00010958,2]
[351306669,1738511436640,-500.0,0.00010958,2]
[351306670,1738511436650,-500.0,0.00010958,2]
[351306671,1738511436659,-500.0,0.00010958,2]
[351306672,1738511436668,-414.52884245,0.00010958,2]
[351306673,1738511436678,-3571.76,0.00010958,2]
[351306674,1738511436687,-500.0,0.00010958,2]
[351306675,1738511436696,-500.0,0.00010958,2]
[351306676,1738511436706,-500.0,0.00010958,2]
[351306677,1738511436715,-754.64,0.00010958,2]
[351306678,1738511436725,-500.0,0.00010958,2]
[351306679,1738511436735,-779.97,0.00010958,2]
[351306680,1738511436744,-500.0,0.00010958,2]
[351306681,1738511436753,-319.816449,0.00010958,2]
[351306682,1738511436762,-502.04216841,0.00010958,2]
[351306683,1738511436772,-3366.95,0.00010958,2]
[351306684,1738511436781,-500.0,0.00010958,2]
[351306685,1738511436791,-500.0,0.00010958,2]
[351306686,1738511436800,-500.0,0.00010958,2]
[351306687,1738511436810,-1388.96,0.00010958,2]
[351306688,1738511436820,-500.0,0.00010958,2]
[351306689,1738511436829,-1447.22,0.00010958,2]
[351306690,1738511436839,-500.0,0.00010958,2]
[351306691,1738511436849,-1621.42,0.00010958,2]
[351306692,1738511436859,-500.0,0.00010958,2]
[351306693,1738511436868,-500.0,0.00010958,2]
[351306694,1738511436878,-1280.75,0.00010958,2]
[351306695,1738511436888,-500.0,0.00010958,2]
[351306696,1738511436898,-500.0,0.00010958,2]
[351306697,1738511436907,-504.16282776,0.00010958,2]
[351306698,1738511436916,-500.0,0.00010958,2]
[351306699,1738511436926,-2398.8,0.00010958,2]
[351306700,1738511436936,-986.99,0.00010958,2]
[351306701,1738511436945,-500.0,0.00010958,2]
[351306702,1738511436955,-500.0,0.00010958,2]
[351306703,1738511436964,-500.0,0.00010958,2]
[351306704,1738511436974,-500.0,0.00010958,2]
[351306705,1738511436983,-6074.3,0.00010958,2]
[351306706,1738511436993,-500.0,0.00010958,2]
[351306707,1738511437003,-500.0,0.00010958,2]
[351306708,1738511437012,-886.37,0.00010958,2]
[351306709,1738511437022,-500.0,0.00010958,2]
[351306710,1738511437031,-1376.7,0.00010958,2]
[351306711,1738511437041,-500.0,0.00010958,2]
[351306712,1738511437051,-500.0,0.00010958,2]
[351306713,1738511437062,-500.0,0.00010958,2]
[351306714,1738511437072,-241.08777322,0.00010958,2]
[351306715,1738511437081,-500.0,0.00010958,2]
[351306716,1738511437090,-715.29,0.00010958,2]
[351306717,1738511437100,-1472.49,0.00010958,2]
[351306718,1738511437109,-500.0,0.00010958,2]
[351306719,1738511437119,-500.0,0.00010958,2]
[351306720,1738511437128,-520.69,0.00010958,2]
[351306721,1738511437138,-500.0,0.00010958,2]
[351306722,1738511437148,-2816.92,0.00010958,2]
[351306723,1738511437158,-500.0,0.00010958,2]
[351306724,1738511437168,-508.10023301,0.00010958,2]
[351306725,1738511437178,-1537.46,0.00010958,2]
[351306726,1738511437188,-500.0,0.00010958,2]
[351306727,1738511437197,-1782.22,0.00010958,2]
[351306728,1738511437206,-500.0,0.00010958,2]
[351306729,1738511437215,-2593.44,0.00010958,2]
[351306730,1738511437225,-500.0,0.00010958,2]
[351306731,1738511437235,-500.0,0.00010958,2]
[351306732,1738511437244,-500.0,0.00010958,2]
[351306733,1738511437255,-500.0,0.00010958,2]
[351306734,1738511437266,-1707.98,0.00010958,2]
[351306735,1738511437275,-814.03,0.00010958,2]
[351306736,1738511437285,-500.0,0.00010958,2]
[351306737,1738511437294,-500.0,0.00010958,2]
[351306738,1738511437303,-2517.19,0.00010958,2]
[351306739,1738511437312,-500.0,0.00010958,2]
[351306740,1738511437321,-500.0,0.00010958,2]
[351306741,1738511437331,-500.0,0.00010958,2]
[351306742,1738511437342,-500.0,0.00010958,2]
[351306743,1738511437351,-1097.15,0.00010958,2]
[351306744,1738511437361,-3495.99,0.00010958,2]
[351306745,1738511437370,-3686.72,0.00010958,2]
[351306746,1738511437379,-500.0,0.00010958,2]
[351306747,1738511437389,-500.0,0.00010958,2]
[351306748,1738511437398,-873.88,0.00010958,2]
[351306749,1738511437407,-500.0,0.00010958,2]
[351306750,1738511437417,-500.0,0.00010958,2]
[351306751,1738511437426,-500.0,0.00010958,2]
[351306752,1738511437436,-500.0,0.00010958,2]
[351306753,1738511437445,-500.0,0.00010958,2]
[351306754,1738511437455,-4032.99,0.00010958,2]
[351306755,1738511437464,-500.0,0.00010958,2]
[351306756,1738511437477,-2612.06,0.00010958,2]
[351306757,1738511437486,-3411.01,0.00010958,2]
[351306758,1738511437496,-2404.98,0.00010958,2]
[351306759,1738511437505,-500.0,0.00010958,2]
[351306760,1738511437515,-500.0,0.00010958,2]
[351306761,1738511437524,-500.0,0.00010958,2]
[351306762,1738511437533,-500.0,0.00010958,2]
[351306763,1738511437544,-866.33,0.00010958,2]
[351306764,1738511437554,-500.0,0.00010958,2]
[351306765,1738511437564,-500.0,0.00010958,2]
[351306766,1738511437574,-500.0,0.00010958,2]
[351306767,1738511437583,-500.0,0.00010958,2]
[351306768,1738511437592,-500.0,0.00010958,2]
[351306769,1738511437602,-500.0,0.00010958,2]
[351306770,1738511437611,-500.0,0.00010958,2]
[351306771,1738511437620,-3469.55,0.00010958,2]
[351306772,1738511437630,-500.0,0.00010958,2]
[351306773,1738511437640,-500.0,0.00010958,2]
[351306774,1738511437649,-1883.12,0.00010958,2]
[351306775,1738511437658,-500.0,0.00010958,2]
[351306776,1738511437668,-2058.8,0.00010958,2]
[351306777,1738511437677,-500.0,0.00010958,2]
[351306778,1738511437686,-500.0,0.00010958,2]
[351306779,1738511437696,-504.96188994,0.00010958,2]
[351306780,1738511437705,-1319.01,0.00010958,2]
[351306781,1738511437715,-608.43,0.00010958,2]
[351306782,1738511437724,-2391.61,0.00010958,2]
[351306783,1738511437733,-500.0,0.00010958,2]
[351306784,1738511437743,-500.0,0.00010958,2]
[351306785,1738511437752,-500.0,0.00010958,2]
[351306786,1738511437762,-4530.32,0.00010958,2]
[351306787,1738511437772,-500.0,0.00010958,2]
[351306788,1738511437782,-500.0,0.00010958,2]
[351306789,1738511437791,-500.0,0.00010958,2]
[351306790,1738511437801,-500.0,0.00010958,2]
[351306791,1738511437810,-1228.14,0.00010958,2]
[351306792,1738511437820,-500.0,0.00010958,2]
[351306793,1738511437830,-500.0,0.00010958,2]
[351306794,1738511437839,-6198.62,0.00010958,2]
[351306795,1738511437849,-500.0,0.00010958,2]
[351306796,1738511437858,-416.40130395,0.00010958,2]
[351306797,1738511437867,-500.0,0.00010958,2]
[351306798,1738511437877,-500.0,0.00010958,2]
[351306799,1738511437887,-327.67330559,0.00010958,2]
[351306800,1738511437904,-172.32669441,0.00010958,2]
[351306801,1738511437913,-500.0,0.00010958,2]
[351306802,1738511437923,-20.23598429,0.00010958,2]
[351306803,1738511437990,-479.76401571,0.00010958,2]
[351306804,1738511438000,-500.0,0.00010958,2]
[351306805,1738511438009,-500.0,0.00010958,2]
[351306806,1738511438018,-500.0,0.00010958,2]
[351306807,1738511438028,-500.0,0.00010958,2]
[351306808,1738511438038,-4177.74,0.00010958,2]
[351306809,1738511438047,-853.08,0.00010958,2]
[351306810,1738511438056,-500.0,0.00010958,2]
[351306811,1738511438066,-500.0,0.00010958,2]
[351306812,1738511438076,-272.83395882,0.00010958,2]
[351306813,1738511438085,-165.53918589,0.00010958,2]
[351306814,1738511438095,-500.0,0.00010958,2]
[351306815,1738511438104,-500.0,0.00010958,2]
[351306816,1738511438114,-1801.53,0.00010958,2]
[351306817,1738511438123,-500.0,0.00010958,2]
[351306818,1738511438133,-500.0,0.00010958,2]
[351306819,1738511438143,-500.0,0.00010958,2]
[351306821,1738511438153,-500.0,0.00010958,2]
[351306822,1738511438162,-500.0,0.00010958,2]
[351306823,1738511438172,-500.0,0.00010958,2]
[351306824,1738511438181,-669.71,0.00010958,2]
[351306825,1738511438190,-500.0,0.00010958,2]
[351306826,1738511438199,-539.5,0.00010958,2]
[351306827,1738511438208,-500.0,0.00010958,2]
[351306828,1738511438218,-500.0,0.00010958,2]
[351306829,1738511438227,-500.0,0.00010958,2]
[351306830,1738511438236,-1402.67,0.00010958,2]
[351306831,1738511438246,-1549.92,0.00010958,2]
[351306832,1738511438256,-500.0,0.00010958,2]
[351306833,1738511438265,-500.0,0.00010958,2]
[351306834,1738511438275,-151.187559,0.00010958,2]
[351306835,1738511438284,-500.0,0.00010958,2]
[351306836,1738511438293,-500.0,0.00010958,2]
[351306837,1738511438303,-500.0,0.00010958,2]
[351306838,1738511438312,-500.0,0.00010958,2]
[351306839,1738511438321,-500.0,0.00010958,2]
[351306840,1738511438330,-500.0,0.00010958,2]
[351306841,1738511438339,-500.0,0.00010958,2]
[351306842,1738511438348,-500.0,0.00010958,2]
[351306843,1738511438358,-820.42,0.00010958,2]
[351306844,1738511438368,-500.0,0.00010958,2]
[351306845,1738511438377,-569.44,0.00010958,2]
[351306846,1738511438387,-816.63,0.00010958,2]
[351306847,1738511438396,-935.02,0.00010958,2]
[351306848,1738511438405,-500.0,0.00010958,2]
[351306849,1738511438414,-474.85797144,0.00010958,2]
[351306850,1738511438423,-500.0,0.00010958,2]
[351306851,1738511438433,-500.0,0.00010958,2]
[351306852,1738511438441,-500.0,0.00010958,2]
[351306853,1738511438451,-500.0,0.00010958,2]
[351306854,1738511438460,-500.0,0.00010958,2]
[351306855,1738511438471,-500.0,0.00010958,2]
[351306856,1738511438484,-885.67,0.00010958,2]
[351306857,1738511438494,-584.53,0.00010958,2]
[351306858,1738511438503,-605.15327311,0.00010958,2]
[351306859,1738511438514,-186.02956701,0.00010958,2]
[351306860,1738511438524,-500.0,0.00011094,2]
[351306861,1738511438534,-500.0,0.00011094,2]
[351306862,1738511438543,-500.0,0.00011094,2]
[351306863,1738511438553,-185.67592966,0.00011094,2]
[351306864,1738511438563,-500.0,0.00011094,2]
[351306865,1738511438573,-500.0,0.00011094,2]
[351306867,1738511438583,-1335.96,0.00011094,2]
[351306869,1738511438592,-978.46,0.00011094,2]
[351306871,1738511438602,-500.0,0.00011094,2]
[351306873,1738511438611,-518.13,0.00011094,2]
[351306875,1738511438621,-500.0,0.00011094,2]
[351306877,1738511438631,-500.0,0.00011094,2]
[351306879,1738511438643,-500.0,0.00011094,2]
[351306881,1738511438653,-500.0,0.00011094,2]
[351306883,1738511438666,-500.0,0.00011094,2]
[351306885,1738511438675,-1147.35,0.00011094,2]
[351306887,1738511438685,-500.0,0.00011094,2]
[351306889,1738511438694,-500.0,0.00011094,2]
[351306891,1738511438703,-668.46,0.00011094,2]
[351306893,1738511438713,-500.0,0.00011094,2]
[351306895,1738511438722,-1211.37,0.00011094,2]
[351306897,1738511438732,-500.0,0.00011094,2]
[351306899,1738511438741,-594.76,0.00011094,2]
[351306901,1738511438751,-1093.43,0.00011094,2]
[351306903,1738511438760,-500.0,0.00011094,2]
[351306905,1738511438769,-500.0,0.00011094,2]
[351306908,1738511438779,-500.0,0.00011094,2]
[351306910,1738511438789,-500.0,0.00011094,2]
[351306912,1738511438798,-500.0,0.00011094,2]
[351306915,1738511438807,-500.0,0.00011094,2]
[351306918,1738511438817,-500.0,0.00011094,2]
[351306920,1738511438826,-500.0,0.00011094,2]
[351306922,1738511438835,-500.0,0.00011094,2]
[351306924,1738511438844,-829.51,0.00011094,2]
[351306926,1738511438854,-500.0,0.00011094,2]
[351306928,1738511438863,-500.0,0.00011094,2]
[351306930,1738511438873,-500.0,0.00011094,2]
[351306932,1738511438885,-500.0,0.00011094,2]
[351306934,1738511438895,-1097.71,0.00011094,2]
[351306936,1738511438904,-954.0813422,0.00011094,2]
[351306938,1738511438917,-114.7586578,0.00011094,2]
[351306941,1738511438927,-500.0,0.00011094,2]
[351306943,1738511438936,-500.0,0.00011094,2]
[351306945,1738511438946,-500.0,0.00011094,2]
[351306946,1738511438955,-500.0,0.00011094,2]
[351306948,1738511438965,-500.0,0.00011094,2]
[351306950,1738511438976,-500.0,0.00011094,2]
[351306952,1738511438986,-500.0,0.00011094,2]
[351306955,1738511438996,-500.0,0.00011094,2]
[351306957,1738511439005,-500.0,0.00011094,2]
[351306958,1738511439014,-500.0,0.00011094,2]
[351306960,1738511439023,-561.08,0.00011094,2]
[351306963,1738511439033,-500.0,0.00011094,2]
[351306964,1738511439042,-500.0,0.00011094,2]
[351306966,1738511439052,-500.0,0.00011094,2]
[351306968,1738511439061,-515.69,0.00011094,2]
[351306970,1738511439070,-653.67,0.00011094,2]
[351306972,1738511439080,-500.0,0.00011094,2]
[351306975,1738511439091,-1093.31,0.00011094,2]
[351306977,1738511439101,-1053.18,0.00011094,2]
[351306978,1738511439110,-500.0,0.00011094,2]
[351306981,1738511439119,-500.0,0.00011094,2]
[351306983,1738511439129,-1273.51,0.00011094,2]
[351306985,1738511439140,-522.28,0.00011094,2]
[351306986,1738511439149,-1239.31,0.00011094,2]
[351306989,1738511439159,-740.34,0.00011094,2]
[351306991,1738511439168,-500.0,0.00011094,2]
[351306992,1738511439177,-500.0,0.00011094,2]
[351306995,1738511439187,-644.61,0.00011094,2]
[351306996,1738511439196,-913.35,0.00011094,2]
[351306998,1738511439205,-500.0,0.00011094,2]
[351307000,1738511439215,-1062.0,0.00011094,2]
[351307002,1738511439224,-1115.18,0.00011094,2]
[351307005,1738511439233,-163.10296999,0.00011094,2]
[351307007,1738511439242,-945.68,0.00011094,2]
[351307009,1738511439252,-607.69,0.00011094,2]
[351307011,1738511439262,-500.0,0.00011094,2]
[351307013,1738511439271,-500.0,0.00011094,2]
[351307014,1738511439280,-522.96,0.00011094,2]
[351307017,1738511439290,-258.22277698,0.00011094,2]
[351307019,1738511439299,-500.0,0.00011094,2]
[351307021,1738511439308,-1647.72,0.00011094,2]
[351307023,1738511439318,-1035.26,0.00011094,2]
[351307025,1738511439327,-500.0,0.00011094,2]
[351307027,1738511439337,-2196.81,0.00011094,2]
[351307029,1738511439346,-500.0,0.00011094,2]
[351307030,1738511439355,-1325.26,0.00011094,2]
[351307032,1738511439365,-573.22,0.00011094,2]
[351307034,1738511439374,-975.31,0.00011094,2]
[351307036,1738511439383,-1985.37,0.00011094,2]
[351307038,1738511439393,-500.0,0.00011094,2]
[351307040,1738511439403,-500.0,0.00011094,2]
[351307042,1738511439412,-918.08,0.00011094,2]
[351307044,1738511439421,-2083.26,0.00011094,2]
[351307046,1738511439431,-1965.57,0.00011094,2]
[351307048,1738511439440,-1323.45,0.00011094,2]
[351307050,1738511439449,-605.39803173,0.00011094,2]
[351307052,1738511439460,-1635.63,0.00011094,2]
[351307054,1738511439468,-500.0,0.00011094,2]
[351307056,1738511439479,-774.16,0.00011094,2]
[351307058,1738511439490,-5662.33,0.00011094,2]
[351307060,1738511439499,-7030.17,0.00011094,2]
[351307062,1738511439509,-782.48,0.00011094,2]
[351307064,1738511439520,-2514.52,0.00011094,2]
[351307066,1738511439529,-681.48,0.00011094,2]
[351307068,1738511439539,-790.42,0.00011094,2]
[351307070,1738511439549,-3657.25,0.00011094,2]
[351307072,1738511439560,-500.0,0.00011094,2]
[351307074,1738511439570,-3049.12,0.00011094,2]
[351307076,1738511439580,-500.0,0.00011094,2]
[351307078,1738511439589,-504.51258651,0.00011094,2]
[351307080,1738511439600,-1745.16,0.00011094,2]
[351307083,1738511439609,-1031.35,0.00011094,2]
[351307085,1738511439618,-1816.81,0.00011094,2]
[351307087,1738511439628,-500.0,0.00011094,2]
[351307089,1738511439638,-528.0,0.00011094,2]
[351307090,1738511439648,-4052.48,0.00011094,2]
[351307092,1738511439657,-602.22,0.00011094,2]
[351307094,1738511439666,-500.0,0.00011094,2]
[351307096,1738511439675,-1474.86,0.00011094,2]
[351307098,1738511439684,-4337.5,0.00011094,2]
[351307100,1738511439694,-1297.61,0.00011094,2]
[351307102,1738511439703,-1453.24,0.00011094,2]
[351307104,1738511439712,-1696.27,0.00011094,2]
[351307106,1738511439723,-1151.97434742,0.00011094,2]
[351307109,1738511439735,-140.88565258,0.00011094,2]
[351307111,1738511439747,-734.3,0.00011094,2]
[351307113,1738511439757,-1155.8,0.00011094,2]
[351307115,1738511439767,-1512.01,0.00011094,2]
[351307117,1738511439776,-1336.03,0.00011094,2]
[351307119,1738511439786,-500.0,0.00011094,2]
[351307121,1738511439796,-686.62,0.00011094,2]
[351307123,1738511439807,-1393.61,0.00011094,2]
[351307125,1738511439816,-500.0,0.00011094,2]
[351307127,1738511439826,-514.30332106,0.00011094,2]
[351307129,1738511439835,-500.0,0.00011094,2]
[351307131,1738511439845,-1657.23,0.00011094,2]
[351307133,1738511439855,-1120.37,0.00011094,2]
[351307135,1738511439865,-823.51,0.00011094,2]
[351307137,1738511439874,-500.0,0.00011095,2]
[351307140,1738511439885,-500.0,0.00011095,2]
[351307143,1738511439895,-500.0,0.00011095,2]
[351307146,1738511439905,-500.0,0.00011095,2]
[351307149,1738511439915,-500.0,0.00011095,2]
[351307152,1738511439924,-500.0,0.00011095,2]
[351307155,1738511439934,-500.0,0.00011095,2]
[351307158,1738511439943,-512.42777013,0.00011095,2]
[351307161,1738511439953,-500.0,0.00011095,2]
[351307163,1738511439963,-500.0,0.00011095,2]
[351307166,1738511439973,-500.0,0.00011095,2]
[351307169,1738511439982,-500.0,0.00011095,2]
[351307170,1738511439991,-500.0,0.00011095,2]
[351307172,1738511440001,-500.0,0.00011095,2]
[351307174,1738511440011,-500.0,0.00011095,2]
[351307176,1738511440021,-500.0,0.00011095,2]
[351307178,1738511440031,-663.36,0.00011095,2]
[351307180,1738511440041,-500.0,0.00011095,2]
[351307182,1738511440051,-500.0,0.00011095,2]
[351307184,1738511440062,-500.0,0.00011095,2]
[351307186,1738511440072,-500.0,0.00011095,2]
[351307190,1738511440083,-500.0,0.00011095,2]
[351307193,1738511440093,-500.0,0.00011095,2]
[351307196,1738511440102,-500.0,0.00011095,2]
[351307198,1738511440112,-500.0,0.00011095,2]
[351307200,1738511440122,-500.0,0.00011095,2]
[351307202,1738511440133,-500.0,0.00011095,2]
[351307204,1738511440145,-500.0,0.00011095,2]
[351307205,1738511440161,-500.0,0.00011095,2]
[351307208,1738511440171,-500.0,0.00011095,2]
[351307209,1738511440180,-500.0,0.00011095,2]
[351307212,1738511440190,-500.0,0.00011095,2]
[351307213,1738511440199,-500.0,0.00011095,2]
[351307216,1738511440209,-500.0,0.00011095,2]
[351307218,1738511440219,-500.0,0.00011095,2]
[351307219,1738511440228,-500.0,0.00011095,2]
[351307221,1738511440237,-500.0,0.00011095,2]
[351307223,1738511440250,-500.0,0.00011095,2]
[351307225,1738511440260,-346.11663442,0.00011095,2]
[351307228,1738511440270,-500.0,0.00011095,2]
[351307229,1738511440279,-500.0,0.00011095,2]
[351307231,1738511440288,-500.0,0.00011095,2]
[351307233,1738511440298,-500.0,0.00011095,2]
[351307235,1738511440307,-500.0,0.00011095,2]
[351307237,1738511440317,-698.15,0.00011095,2]
[351307239,1738511440327,-500.0,0.00011095,2]
[351307241,1738511440336,-500.0,0.00011095,2]
[351307243,1738511440345,-500.0,0.00011095,2]
[351307245,1738511440355,-508.44190766,0.00011095,2]
[351307247,1738511440364,-500.0,0.00011095,2]
[351307250,1738511440375,-500.0,0.00011095,2]
[351307252,1738511440385,-500.0,0.00011095,2]
[351307254,1738511440394,-500.0,0.00011095,2]
[351307255,1738511440404,-500.0,0.00011095,2]
[351307277,1738511440610,-500.0,0.00011095,2]
[351307279,1738511440621,-500.0,0.00011095,2]
[351307281,1738511440630,-500.0,0.00011095,2]
[351307283,1738511440641,-500.0,0.00011095,2]
[351307285,1738511440651,-500.0,0.00011095,2]
[351307287,1738511440661,-500.0,0.00011095,2]
[351307289,1738511440670,-500.0,0.00011095,2]
[351307291,1738511440681,-500.0,0.00011095,2]
[351307293,1738511440690,-500.0,0.00011095,2]
[351307295,1738511440700,-500.0,0.00011095,2]
[351307297,1738511440709,-500.0,0.00011095,2]
[351307299,1738511440719,-500.0,0.00011095,2]
[351307301,1738511440728,-500.0,0.00011095,2]
[351307303,1738511440738,-500.0,0.00011095,2]
[351307305,1738511440748,-500.0,0.00011095,2]
[351307307,1738511440758,-500.0,0.00011095,2]
[351307309,1738511440767,-500.0,0.00011095,2]
[351307312,1738511440778,-705.16,0.00011095,2]
[351307314,1738511440788,-531.92,0.00011095,2]
[351307316,1738511440797,-500.0,0.00011095,2]
[351307318,1738511440807,-500.0,0.00011095,2]
[351307320,1738511440819,-500.0,0.00011095,2]
[351307322,1738511440829,-500.0,0.00011095,2]
[351307324,1738511440838,-500.0,0.00011095,2]
[351307325,1738511440849,-500.0,0.00011095,2]
[351307327,1738511440859,-500.0,0.00011095,2]
[351307328,1738511440868,-500.0,0.00011095,2]
[351307329,1738511440878,-500.0,0.00011095,2]
[351307331,1738511440887,-500.0,0.00011095,2]
[351307332,1738511440897,-500.0,0.00011095,2]
[351307333,1738511440907,-500.0,0.00011095,2]
[351307334,1738511440917,-500.0,0.00011095,2]
[351307335,1738511440927,-500.0,0.00011095,2]
[351307336,1738511440937,-500.0,0.00011095,2]
[351307337,1738511440947,-500.0,0.00011095,2]
[351307338,1738511440956,-500.0,0.00011095,2]
[351307339,1738511440967,-500.0,0.00011095,2]
[351307340,1738511440976,-500.0,0.00011095,2]
[351307341,1738511440986,-500.0,0.00011095,2]
[351307342,1738511440996,-500.0,0.00011095,2]
[351307343,1738511441005,-719.85,0.00011095,2]
[351307344,1738511441015,-500.0,0.00011095,2]
[351307345,1738511441025,-594.38,0.00011095,2]
[351307346,1738511441035,-500.0,0.00011095,2]
[351307347,1738511441044,-500.0,0.00011095,2]
[351307348,1738511441054,-563.78,0.00011095,2]
[351307349,1738511441064,-500.0,0.00011095,2]
[351307350,1738511441073,-500.0,0.00011095,2]
[351307351,1738511441083,-500.0,0.00011095,2]
[351307352,1738511441092,-500.0,0.00011095,2]
[351307353,1738511441102,-500.0,0.00011095,2]
[351307354,1738511441112,-500.0,0.00011095,2]
[351307355,1738511441121,-752.42,0.00011095,2]
[351307356,1738511441131,-500.0,0.00011095,2]
[351307357,1738511441141,-500.0,0.00011095,2]
[351307358,1738511441151,-500.0,0.00011095,2]
[351307359,1738511441161,-500.0,0.00011095,2]
[351307360,1738511441171,-500.0,0.00011095,2]
[351307361,1738511441180,-500.0,0.00011095,2]
[351307362,1738511441190,-500.0,0.00011095,2]
[351307363,1738511441200,-500.0,0.00011095,2]
[351307364,1738511441210,-743.8,0.00011095,2]
[351307365,1738511441219,-541.85163887,0.00011095,2]
[351307366,1738511441229,-500.0,0.00011095,2]
[351307367,1738511441238,-500.0,0.00011095,2]
[351307368,1738511441248,-600.79449165,0.00011095,2]
[351307369,1738511441257,-500.0,0.00011095,2]
[351307370,1738511441266,-500.0,0.00011095,2]
[351307371,1738511441276,-500.0,0.00011095,2]
[351307372,1738511441286,-500.0,0.00011095,2]
[351307373,1738511441295,-500.0,0.00011095,2]
[351307374,1738511441305,-500.0,0.00011095,2]
[351307375,1738511441315,-500.0,0.00011095,2]
[351307376,1738511441326,-500.0,0.00011095,2]
[351307377,1738511441336,-500.0,0.00011095,2]
[351307378,1738511441346,-500.0,0.00011095,2]
[351307379,1738511441355,-725.47,0.00011095,2]
[351307380,1738511441365,-764.06,0.00011095,2]
[351307381,1738511441375,-500.0,0.00011095,2]
[351307382,1738511441385,-500.0,0.00011095,2]
[351307383,1738511441395,-500.0,0.00011095,2]
[351307384,1738511441404,-500.0,0.00011095,2]
[351307385,1738511441414,-500.0,0.00011095,2]
[351307386,1738511441424,-500.0,0.00011095,2]